fUST/lending_fUST_20250422
["ID","MTS","AMOUNT","RATE_DAILY","PERIOD"]
[358619716,1745314247443,-661.71,0.00023013,2]
[358619717,1745314247453,-500.0,0.00023013,2]
[358619718,1745314247462,-634.83,0.00023013,2]
[358619719,1745314247472,-500.0,0.00023013,2]
[358619720,1745314247482,-500.0,0.00023013,2]
[358619721,1745314247492,-500.0,0.00023013,2]
[358619722,1745314247501,-500.0,0.00023013,2]
[358619723,1745314247512,-500.0,0.00023013,2]
[358619724,1745314247522,-500.0,0.00023013,2]
[358619725,1745314247532,-500.0,0.00023013,2]
[358619726,1745314247542,-500.0,0.00023013,2]
[358619727,1745314247551,-1027.86,0.00023013,2]
[358619728,1745314247561,-500.0,0.00023013,2]
[358619729,1745314247571,-2241.63,0.00023013,2]
[358619730,1745314247581,-500.0,0.00023013,2]
[358619731,1745314247591,-409.12189898,0.00023013,2]
[358619732,1745314247601,-8171.88,0.00023013,2]
[358619733,1745314247613,-500.0,0.00023013,2]
[358619734,1745314247625,-522.07060473,0.00023013,2]
[358619735,1745314247636,-500.0,0.00023013,2]
[358619736,1745314247647,-672.1,0.00023013,2]
[358619737,1745314247659,-500.0,0.00023013,2]
[358619738,1745314247669,-827.8,0.00023013,2]
[358619739,1745314247681,-441.5717108,0.00023013,2]
[358619740,1745314247692,-398.07002714,0.00023013,2]
[358619741,1745314247703,-1028.74,0.00023013,2]
[358619742,1745314247713,-629.89,0.00023013,2]
[358619743,1745314247723,-6020.14,0.00023013,2]
[358619744,1745314247734,-500.0,0.00023013,2]
[358619745,1745314247745,-620.71,0.00023013,2]
[358619746,1745314247755,-500.0,0.00023013,2]
[358619747,1745314247766,-509.81,0.00023013,2]
[358619748,1745314247776,-531.69,0.00023013,2]
[358619749,1745314247786,-500.0,0.00023013,2]
[358619750,1745314247797,-534.38,0.00023013,2]
[358619751,1745314247806,-500.0,0.00023013,2]
[358619752,1745314247816,-500.0,0.00023013,2]
[358619753,1745314247828,-1025.11,0.00023013,2]
[358619754,1745314247838,-500.0,0.00023013,2]
[358619755,1745314247848,-500.0,0.00023013,2]
[358619756,1745314247859,-245.0,0.00023014,2]
[358619757,1745314247870,-500.0,0.00023014,2]
[358619758,1745314247880,-500.0,0.00023014,2]
[358619759,1745314247890,-500.0,0.00023014,2]
[358619760,1745314247901,-151.0,0.00023014,2]
[358619761,1745314247911,-151.0,0.00023014,2]
[358619762,1745314247922,-220.40426693,0.00023014,2]
[358619763,1745314247932,-301.56665311,0.00023014,2]
[358619764,1745314247944,-500.0,0.00023014,2]
[358619765,1745314247954,-197.53968718,0.00023014,2]
[358619766,1745314247964,-151.0,0.00023014,2]
[358619767,1745314247975,-151.0,0.00023014,2]
[358619768,1745314247984,-290.86589716,0.00023014,2]
[358619769,1745314247994,-500.0,0.00023014,2]
[358619770,1745314248003,-500.0,0.00023014,2]
[358619771,1745314248013,-500.0,0.00023014,2]
[358619772,1745314248023,-150.328,0.00023027,2]
[358619773,1745314248032,-151.0,0.000231,8]
[358619774,1745314248041,-3281.35970428,0.00023249,2]
[358619775,1745314248051,-1137.66586207,0.00023279,4]
[358619776,1745314248060,-151.0,0.00023287,7]
[358619777,1745314248069,-500.0,0.00023287,2]
[358619778,1745314248080,-500.0,0.00023287,2]
[358619779,1745314248089,-151.0,0.00023287,7]
[358619780,1745314248099,-513.75,0.00023287,2]
[358619781,1745314248108,-237.388523,0.00023287,2]
[358619782,1745314248118,-500.0,0.00023287,2]
[358619783,1745314248127,-500.0,0.00023287,2]
[358619784,1745314248136,-151.0,0.00023287,7]
[358619785,1745314248146,-221.37725647,0.00023287,2]
[358619786,1745314248155,-151.0,0.00023287,7]
[358619787,1745314248165,-730.36,0.00023287,2]
[358619788,1745314248174,-803.17,0.00023287,2]
[358619789,1745314248184,-500.0,0.00023287,2]
[358619790,1745314248194,-507.83,0.00023287,2]
[358619791,1745314248203,-500.0,0.00023287,2]
[358619792,1745314248213,-563.96,0.00023287,2]
[358619793,1745314248223,-885.26,0.00023287,2]
[358619794,1745314248233,-500.0,0.00023287,2]
[358619795,1745314248242,-500.0,0.00023287,2]
[358619796,1745314248252,-172.275406,0.00023287,7]
[358619797,1745314248262,-500.0,0.00023287,2]
[358619798,1745314248272,-197.25261,0.00023287,7]
[358619799,1745314248282,-197.25261,0.00023287,7]
[358619800,1745314248291,-500.0,0.00023287,2]
[358619801,1745314248300,-562.91,0.00023287,2]
[358619802,1745314248309,-500.0,0.00023287,2]
[358619803,1745314248319,-500.0,0.00023287,2]
[358619804,1745314248329,-619.4,0.00023287,2]
[358619805,1745314248339,-862.35,0.00023287,2]
[358619806,1745314248348,-500.0,0.00023287,2]
[358619807,1745314248358,-991.46,0.00023287,2]
[358619808,1745314248367,-500.0,0.00023287,2]
[358619809,1745314248377,-500.0,0.00023287,2]
[358619810,1745314248387,-500.0,0.00023287,2]
[358619811,1745314248398,-500.0,0.00023287,2]
[358619812,1745314248408,-659.07,0.00023287,2]
[358619813,1745314248417,-654.88,0.00023287,2]
[358619814,1745314248427,-151.0,0.00023287,7]
[358619815,1745314248437,-168.680513,0.00023287,7]
[358619816,1745314248447,-530.78870864,0.00023287,2]
[358619817,1745314248457,-500.0,0.00023287,2]
[358619818,1745314248466,-500.0,0.00023287,2]
[358619819,1745314248477,-1442.24,0.00023287,2]
[358619820,1745314248487,-608.96,0.00023287,2]
[358619821,1745314248497,-500.0,0.00023287,2]
[358619822,1745314248675,-736.68,0.00023287,2]
[358619823,1745314248687,-610.01,0.00023287,2]
[358619824,1745314248697,-500.0,0.00023287,2]
[358619825,1745314248708,-500.0,0.00023287,2]
[358619826,1745314248718,-500.0,0.00023287,2]
[358619827,1745314248728,-151.0,0.00023287,7]
[358619828,1745314248737,-500.0,0.00023287,2]
[358619829,1745314248747,-500.0,0.00023287,2]
[358619830,1745314248757,-958.78,0.00023287,2]
[358619831,1745314248768,-713.31,0.00023287,2]
[358619832,1745314248778,-164.411878,0.00023287,7]
[358619833,1745314248787,-164.411878,0.00023287,7]
[358619834,1745314248797,-164.411878,0.00023287,7]
[358619835,1745314248806,-164.411878,0.00023287,7]
[358619836,1745314248816,-2028.73,0.00023287,2]
[358619837,1745314248825,-500.0,0.00023287,2]
[358619838,1745314248835,-500.0,0.00023287,2]
[358619839,1745314248845,-151.0,0.00023287,7]
[358619840,1745314248855,-500.0,0.00023287,2]
[358619841,1745314248864,-500.0,0.00023287,2]
[358619842,1745314248873,-586.6,0.00023287,2]
[358619843,1745314248883,-151.0,0.00023287,7]
[358619844,1745314248892,-192.472249,0.00023287,7]
[358619845,1745314248902,-740.53,0.00023287,2]
[358619846,1745314248912,-151.0,0.00023287,7]
[358619847,1745314248921,-155.238779,0.00023287,7]
[358619848,1745314248931,-882.22,0.00023287,2]
[358619849,1745314248940,-920.82,0.00023287,2]
[358619850,1745314248950,-652.82,0.00023287,2]
[358619851,1745314248960,-1168.95,0.00023287,2]
[358619852,1745314248970,-500.0,0.00023287,2]
[358619853,1745314248980,-500.0,0.00023287,2]
[358619854,1745314248990,-648.7,0.00023287,2]
[358619855,1745314249000,-500.0,0.00023287,2]
[358619856,1745314249010,-500.0,0.00023287,2]
[358619857,1745314249020,-500.0,0.00023287,2]
[358619858,1745314249031,-500.0,0.00023287,2]
[358619859,1745314249041,-525.39,0.00023287,2]
[358619860,1745314249051,-151.0,0.00023287,7]
[358619861,1745314249061,-239.221894,0.00023287,7]
[358619862,1745314249071,-960.81,0.00023287,2]
[358619863,1745314249081,-500.0,0.00023287,2]
[358619864,1745314249092,-538.1,0.00023287,2]
[358619865,1745314249102,-500.0,0.00023287,2]
[358619866,1745314249112,-500.0,0.00023287,2]
[358619867,1745314249122,-500.0,0.00023287,2]
[358619868,1745314249132,-500.0,0.00023287,2]
[358619869,1745314249142,-151.0,0.00023287,7]
[358619870,1745314249152,-151.0,0.00023287,7]
[358619871,1745314249162,-235.879668,0.00023287,7]
[358619872,1745314249172,-235.879668,0.00023287,7]
[358619873,1745314249182,-566.3,0.00023287,2]
[358619874,1745314249191,-235.879668,0.00023287,7]
[358619875,1745314249201,-235.879668,0.00023287,7]
[358619876,1745314249210,-500.0,0.00023287,2]
[358619877,1745314249220,-575.68,0.00023287,2]
[358619878,1745314249230,-581.96,0.00023287,2]
[358619879,1745314249240,-338.962784,0.00023287,7]
[358619880,1745314249250,-338.962784,0.00023287,7]
[358619881,1745314249260,-500.0,0.00023287,2]
[358619882,1745314249270,-338.962784,0.00023287,7]
[358619883,1745314249280,-338.962784,0.00023287,7]
[358619884,1745314249290,-627.07,0.00023287,2]
[358619885,1745314249300,-500.0,0.00023287,2]
[358619886,1745314249310,-525.86,0.00023287,2]
[358619887,1745314249320,-151.0,0.00023287,7]
[358619888,1745314249330,-151.0,0.00023287,7]
[358619889,1745314249339,-842.69,0.00023287,2]
[358619890,1745314249350,-510.66606459,0.00023287,2]
[358619891,1745314249359,-500.0,0.00023287,2]
[358619892,1745314249369,-500.0,0.00023287,2]
[358619893,1745314249379,-13294.97,0.00023287,2]
[358619894,1745314249388,-500.0,0.00023287,2]
[358619895,1745314249398,-151.0,0.00023287,7]
[358619896,1745314249408,-151.0,0.00023287,7]
[358619897,1745314249418,-500.0,0.00023287,2]
[358619898,1745314249428,-729.16666667,0.00023287,7]
[358619899,1745314249439,-500.0,0.00023287,2]
[358619900,1745314249449,-851.23,0.00023287,2]
[358619901,1745314249460,-500.0,0.00023287,2]
[358619902,1745314249470,-500.0,0.00023287,2]
[358619903,1745314249479,-592.86,0.00023287,2]
[358619904,1745314249490,-1351.34,0.00023287,2]
[358619905,1745314249500,-490.981502,0.00023287,7]
[358619906,1745314249509,-490.981502,0.00023287,7]
[358619907,1745314249519,-133.96332448,0.00023287,2]
[358619908,1745314249551,-903.42,0.00022191,2]
[358619909,1745314249561,-366.03667552,0.00023287,2]
[358619910,1745314249572,-490.981502,0.00023287,7]
[358619911,1745314249582,-358.31002395,0.00023287,7]
[358619912,1745314249594,-132.67147805,0.00023287,7]
[358619913,1745314249606,-322.80637077,0.00023287,2]
[358619914,1745314249620,-928.74,0.00023287,2]
[358619915,1745314249630,-500.0,0.00023287,2]
[358619916,1745314249640,-528.08,0.00023287,2]
[358619917,1745314249651,-1029.33,0.00023287,2]
[358619918,1745314249660,-500.0,0.00023287,2]
[358619919,1745314249670,-500.0,0.00023287,2]
[358619920,1745314249680,-927.82,0.00023287,2]
[358619921,1745314249692,-511.59,0.00023287,2]
[358619922,1745314249702,-651.02,0.00023287,2]
[358619923,1745314249712,-500.0,0.00023287,2]
[358619924,1745314249722,-687.17,0.00023287,2]
[358619925,1745314249732,-570.98,0.00023287,2]
[358619926,1745314249742,-516.249055,0.00023287,7]
[358619927,1745314249751,-516.249055,0.00023287,7]
[358619928,1745314249762,-500.0,0.00023287,2]
[358619929,1745314249771,-516.249055,0.00023287,7]
[358619930,1745314249781,-516.249055,0.00023287,7]
[358619931,1745314249791,-500.0,0.00023287,2]
[358619932,1745314249800,-2105.46,0.00023287,2]
[358619933,1745314249810,-500.0,0.00023287,2]
[358619934,1745314249820,-644.28,0.00023287,2]
[358619935,1745314249830,-160.0,0.00023287,2]
[358619936,1745314249839,-500.0,0.00023287,2]
[358619937,1745314249849,-3664.15,0.00023287,2]
[358619938,1745314249859,-500.0,0.00023287,2]
[358619939,1745314249868,-179.58477295,0.00023287,2]
[358619940,1745314249878,-500.0,0.00023287,2]
[358619941,1745314249887,-880.71,0.00023287,2]
[358619942,1745314249897,-584.86251079,0.00023287,2]
[358619943,1745314249906,-819.23,0.00023287,2]
[358619944,1745314249916,-164.575229,0.00023287,7]
[358619945,1745314249926,-164.575229,0.00023287,7]
[358619946,1745314249935,-500.0,0.00023287,2]
[358619947,1745314249945,-500.0,0.00023287,2]
[358619948,1745314249954,-1875.31,0.00023287,2]
[358619949,1745314249964,-164.575229,0.00023287,7]
[358619950,1745314249973,-164.575229,0.00023287,7]
[358619951,1745314249983,-661.71,0.00023287,2]
[358619952,1745314249993,-500.0,0.00023287,2]
[358619953,1745314250002,-634.83,0.00023287,2]
[358619954,1745314250011,-500.0,0.00023287,2]
[358619955,1745314250021,-267.79786416,0.00023287,2]
[358619956,1745314250030,-500.0,0.00023287,2]
[358619957,1745314250039,-500.0,0.00023287,2]
[358619958,1745314250049,-500.0,0.00023287,2]
[358619959,1745314250058,-500.0,0.00023287,2]
[358619960,1745314250068,-500.0,0.00023287,2]
[358619961,1745314250077,-500.0,0.00023287,2]
[358619962,1745314250087,-1027.86,0.00023287,2]
[358619963,1745314250096,-500.0,0.00023287,2]
[358619964,1745314250106,-2241.63,0.00023287,2]
[358619965,1745314250116,-500.0,0.00023287,2]
[358619966,1745314250125,-8171.88,0.00023287,2]
[358619967,1745314250135,-496.18293786,0.00023287,2]
[358619968,1745314250144,-500.0,0.00023287,2]
[358619969,1745314250154,-672.1,0.00023287,2]
[358619970,1745314250164,-500.0,0.00023287,2]
[358619971,1745314250173,-827.8,0.00023287,2]
[358619972,1745314250183,-1028.74,0.00023287,2]
[358619973,1745314250193,-629.89,0.00023287,2]
[358619974,1745314250202,-6020.14,0.00023287,2]
[358619975,1745314250212,-500.0,0.00023287,2]
[358619976,1745314250222,-620.71,0.00023287,2]
[358619977,1745314250233,-296.80678423,0.00023287,2]
[358619978,1745314250242,-509.81,0.00023287,2]
[358619979,1745314250252,-531.69,0.00023287,2]
[358619980,1745314250262,-500.0,0.00023287,2]
[358619981,1745314250272,-534.38,0.00023287,2]
[358619982,1745314250282,-500.0,0.00023287,2]
[358619983,1745314250291,-500.0,0.00023287,2]
[358619984,1745314250301,-1025.11,0.00023287,2]
[358619985,1745314250311,-500.0,0.00023287,2]
[358619986,1745314250321,-500.0,0.00023287,2]
[358619987,1745314250331,-500.0,0.00023291,2]
[358619988,1745314250341,-500.0,0.00023464,2]
[358619989,1745314250350,-500.0,0.00023464,2]
[358619990,1745314250360,-500.0,0.0002349,2]
[358619991,1745314250370,-160.0,0.0002356,3]
[358619992,1745314250379,-151.0,0.00023561,7]
[358619993,1745314250389,-151.0,0.00023561,7]
[358619994,1745314250399,-500.0,0.00023561,2]
[358619995,1745314250408,-500.0,0.00023561,2]
[358619996,1745314250418,-151.0,0.00023561,7]
[358619997,1745314250428,-237.388523,0.00023561,2]
[358619998,1745314250437,-513.75,0.00023561,2]
[358619999,1745314250447,-237.388523,0.00023561,2]
[358620000,1745314250457,-500.0,0.00023561,2]
[358620001,1745314250467,-621.2146198,0.00023561,2]
[358620002,1745314250477,-151.0,0.00023561,7]
[358620003,1745314250487,-730.36,0.00023561,2]
[358620004,1745314250496,-803.17,0.00023561,2]
[358620005,1745314250505,-500.0,0.00023561,2]
[358620006,1745314250515,-507.83,0.00023561,2]
[358620007,1745314250526,-500.0,0.00023561,2]
[358620008,1745314250536,-563.96,0.00023561,2]
[358620009,1745314250545,-885.26,0.00023561,2]
[358620010,1745314250555,-500.0,0.00023561,2]
[358620011,1745314250565,-500.0,0.00023561,2]
[358620012,1745314250575,-172.275406,0.00023561,7]
[358620013,1745314250584,-618.1523952,0.00023561,2]
[358620014,1745314250594,-197.25261,0.00023561,7]
[358620015,1745314250605,-197.25261,0.00023561,7]
[358620016,1745314250616,-500.0,0.00023561,2]
[358620017,1745314250625,-562.91,0.00023561,2]
[358620018,1745314250635,-500.0,0.00023561,2]
[358620019,1745314250644,-500.0,0.00023561,2]
[358620020,1745314250656,-862.35,0.00023561,2]
[358620021,1745314250666,-500.0,0.00023561,2]
[358620022,1745314250676,-991.46,0.00023561,2]
[358620023,1745314250688,-500.0,0.00023561,2]
[358620024,1745314250698,-500.0,0.00023561,2]
[358620025,1745314250708,-500.0,0.00023561,2]
[358620026,1745314250718,-158.70034301,0.00023561,2]
[358620027,1745314250728,-659.07,0.00023561,2]
[358620028,1745314250738,-654.88,0.00023561,2]
[358620029,1745314250747,-151.0,0.00023561,7]
[358620030,1745314250757,-500.0,0.00023561,2]
[358620031,1745314250767,-276.34333471,0.00023561,2]
[358620032,1745314250777,-1442.24,0.00023561,2]
[358620033,1745314250786,-608.96,0.00023561,2]
[358620034,1745314250796,-223.8805187,0.00023561,2]
[358620035,1745314250806,-736.68,0.00023561,2]
[358620036,1745314250816,-610.01,0.00023561,2]
[358620037,1745314250825,-500.0,0.00023561,2]
[358620038,1745314250835,-500.0,0.00023561,2]
[358620039,1745314250844,-500.0,0.00023561,2]
[358620040,1745314250854,-151.0,0.00023561,7]
[358620041,1745314250864,-500.0,0.00023561,2]
[358620042,1745314250873,-500.0,0.00023561,2]
[358620043,1745314250883,-958.78,0.00023561,2]
[358620044,1745314250894,-713.31,0.00023561,2]
[358620045,1745314250904,-164.411878,0.00023561,7]
[358620046,1745314250914,-164.411878,0.00023561,7]
[358620047,1745314250924,-2028.73,0.00023561,2]
[358620048,1745314250934,-500.0,0.00023561,2]
[358620049,1745314250944,-500.0,0.00023561,2]
[358620050,1745314250954,-500.0,0.00023561,2]
[358620051,1745314250963,-500.0,0.00023561,2]
[358620052,1745314250973,-586.6,0.00023561,2]
[358620053,1745314250982,-740.53,0.00023561,2]
[358620054,1745314250992,-882.22,0.00023561,2]
[358620055,1745314251001,-920.82,0.00023561,2]
[358620056,1745314251011,-652.82,0.00023561,2]
[358620057,1745314251020,-1168.95,0.00023561,2]
[358620058,1745314251030,-500.0,0.00023561,2]
[358620059,1745314251039,-500.0,0.00023561,2]
[358620060,1745314251049,-648.7,0.00023561,2]
[358620061,1745314251058,-500.0,0.00023561,2]
[358620062,1745314251068,-500.0,0.00023561,2]
[358620063,1745314251078,-500.0,0.00023561,2]
[358620064,1745314251087,-500.0,0.00023561,2]
[358620065,1745314251140,-525.39,0.00023561,2]
[358620066,1745314251150,-960.81,0.00023561,2]
[358620067,1745314251160,-500.0,0.00023561,2]
[358620068,1745314251170,-538.1,0.00023561,2]
[358620069,1745314251179,-500.0,0.00023561,2]
[358620070,1745314251189,-644.27867539,0.00023561,2]
[358620071,1745314251198,-500.0,0.00023561,2]
[358620072,1745314251208,-500.0,0.00023561,2]
[358620073,1745314251217,-151.0,0.00023561,7]
[358620074,1745314251227,-235.879668,0.00023561,7]
[358620075,1745314251236,-566.3,0.00023561,2]
[358620076,1745314251245,-235.879675,0.00023561,7]
[358620077,1745314251255,-500.0,0.00023561,2]
[358620078,1745314251265,-575.68,0.00023561,2]
[358620079,1745314251274,-581.96,0.00023561,2]
[358620080,1745314251284,-338.962784,0.00023561,7]
[358620081,1745314251294,-500.0,0.00023561,2]
[358620082,1745314251303,-338.962774,0.00023561,7]
[358620083,1745314251312,-627.07,0.00023561,2]
[358620084,1745314251322,-500.0,0.00023561,2]
[358620085,1745314251332,-525.86,0.00023561,2]
[358620086,1745314251342,-169.854952,0.00023561,7]
[358620087,1745314251352,-842.69,0.00023561,2]
[358620088,1745314251361,-500.0,0.00023561,2]
[358620089,1745314251371,-500.0,0.00023561,2]
[358620090,1745314251380,-13294.97,0.00023561,2]
[358620091,1745314251389,-500.0,0.00023561,2]
[358620092,1745314251399,-151.0,0.00023561,7]
[358620093,1745314251408,-500.0,0.00023561,2]
[358620094,1745314251417,-500.0,0.00023561,2]
[358620095,1745314251427,-851.23,0.00023561,2]
[358620096,1745314251436,-500.0,0.00023561,2]
[358620097,1745314251445,-500.0,0.00023561,2]
[358620098,1745314251455,-592.86,0.00023561,2]
[358620099,1745314251464,-1351.34,0.00023561,2]
[358620100,1745314251474,-490.981502,0.00023561,7]
[358620101,1745314251484,-500.0,0.00023561,2]
[358620102,1745314251494,-490.981509,0.00023561,7]
[358620103,1745314251503,-928.74,0.00023561,2]
[358620104,1745314251513,-500.0,0.00023561,2]
[358620105,1745314251523,-528.08,0.00023561,2]
[358620106,1745314251532,-1029.33,0.00023561,2]
[358620107,1745314251541,-500.0,0.00023561,2]
[358620108,1745314251551,-500.0,0.00023561,2]
[358620109,1745314251560,-927.82,0.00023561,2]
[358620110,1745314251570,-511.59,0.00023561,2]
[358620111,1745314251579,-651.02,0.00023561,2]
[358620112,1745314251589,-500.0,0.00023561,2]
[358620113,1745314251599,-687.17,0.00023561,2]
[358620114,1745314251614,-570.98,0.00023561,2]
[358620115,1745314251625,-516.249055,0.00023561,7]
[358620116,1745314251634,-500.0,0.00023561,2]
[358620117,1745314251644,-516.24905502,0.00023561,7]
[358620118,1745314251654,-500.0,0.00023561,2]
[358620119,1745314251665,-2105.46,0.00023561,2]
[358620120,1745314251674,-500.0,0.00023561,2]
[358620121,1745314251683,-644.28,0.00023561,2]
[358620122,1745314251695,-500.0,0.00023561,2]
[358620123,1745314251706,-3664.15,0.00023561,2]
[358620124,1745314251715,-500.0,0.00023561,2]
[358620125,1745314251725,-361.86943423,0.00023561,2]
[358620126,1745314251734,-880.71,0.00023561,2]
[358620127,1745314251743,-819.23,0.00023561,2]
[358620128,1745314251753,-164.575229,0.00023561,7]
[358620129,1745314251762,-500.0,0.00023561,2]
[358620130,1745314251772,-500.0,0.00023561,2]
[358620131,1745314251782,-1875.31,0.00023561,2]
[358620132,1745314251792,-164.575235,0.00023561,7]
[358620133,1745314251801,-661.71,0.00023561,2]
[358620134,1745314251811,-500.0,0.00023561,2]
[358620135,1745314251820,-634.83,0.00023561,2]
[358620136,1745314251830,-500.0,0.00023561,2]
[358620137,1745314251840,-500.0,0.00023561,2]
[358620138,1745314251850,-500.0,0.00023561,2]
[358620139,1745314251859,-500.0,0.00023561,2]
[358620140,1745314251869,-500.0,0.00023561,2]
[358620141,1745314251880,-500.0,0.00023561,2]
[358620142,1745314251889,-500.0,0.00023561,2]
[358620143,1745314251899,-1027.86,0.00023561,2]
[358620144,1745314251909,-500.0,0.00023561,2]
[358620145,1745314251919,-2241.63,0.00023561,2]
[358620146,1745314251928,-500.0,0.00023561,2]
[358620147,1745314251938,-8171.88,0.00023561,2]
[358620148,1745314251949,-500.0,0.00023561,2]
[358620149,1745314251958,-672.1,0.00023561,2]
[358620150,1745314251967,-500.0,0.00023561,2]
[358620151,1745314251977,-827.8,0.00023561,2]
[358620152,1745314251987,-1028.74,0.00023561,2]
[358620153,1745314251996,-629.89,0.00023561,2]
[358620154,1745314252005,-6020.14,0.00023561,2]
[358620155,1745314252015,-500.0,0.00023561,2]
[358620156,1745314252024,-620.71,0.00023561,2]
[358620157,1745314252035,-509.81,0.00023561,2]
[358620158,1745314252045,-531.69,0.00023561,2]
[358620159,1745314252056,-500.0,0.00023561,2]
[358620160,1745314252067,-534.38,0.00023561,2]
[358620161,1745314252076,-500.0,0.00023561,2]
[358620162,1745314252086,-500.0,0.00023561,2]
[358620163,1745314252096,-1025.11,0.00023561,2]
[358620164,1745314252106,-500.0,0.00023561,2]
[358620165,1745314252116,-500.0,0.00023561,2]
[358620166,1745314252127,-151.58182841,0.00023562,2]
[358620167,1745314252137,-500.0,0.00023562,2]
[358620168,1745314252146,-283.51632134,0.00023562,2]
[358620169,1745314252157,-249.33190238,0.00023562,2]
[358620170,1745314252167,-500.0,0.00023562,2]
[358620171,1745314252178,-151.0,0.00023562,2]
[358620172,1745314252188,-151.0,0.00023562,2]
[358620173,1745314252200,-500.0,0.00023562,2]
[358620174,1745314252210,-500.0,0.00023562,2]
[358620175,1745314252220,-500.0,0.00023562,2]
[358620176,1745314252230,-151.0,0.00023624,7]
[358620177,1745314252239,-500.0,0.00023835,2]
[358620178,1745314252249,-500.0,0.00023835,2]
[358620179,1745314252258,-151.0,0.00023835,7]
[358620180,1745314252268,-237.388523,0.00023835,2]
[358620181,1745314252278,-513.75,0.00023835,2]
[358620182,1745314252287,-237.388523,0.00023835,2]
[358620183,1745314252297,-500.0,0.00023835,2]
[358620184,1745314252307,-151.0,0.00023835,7]
[358620185,1745314252317,-730.36,0.00023835,2]
[358620186,1745314252327,-803.17,0.00023835,2]
[358620187,1745314252336,-500.0,0.00023835,2]
[358620188,1745314252346,-507.83,0.00023835,2]
[358620189,1745314252357,-500.0,0.00023835,2]
[358620190,1745314252367,-563.96,0.00023835,2]
[358620191,1745314252377,-885.26,0.00023835,2]
[358620192,1745314252388,-500.0,0.00023835,2]
[358620193,1745314252398,-500.0,0.00023835,2]
[358620194,1745314252409,-172.275406,0.00023835,7]
[358620195,1745314252418,-172.275406,0.00023835,7]
[358620196,1745314252428,-197.25261,0.00023835,7]
[358620197,1745314252438,-197.25261,0.00023835,7]
[358620198,1745314252447,-500.0,0.00023835,2]
[358620199,1745314252457,-562.91,0.00023835,2]
[358620200,1745314252467,-500.0,0.00023835,2]
[358620201,1745314252477,-500.0,0.00023835,2]
[358620202,1745314252486,-862.35,0.00023835,2]
[358620203,1745314252496,-500.0,0.00023835,2]
[358620204,1745314252506,-991.46,0.00023835,2]
[358620205,1745314252516,-500.0,0.00023835,2]
[358620206,1745314252526,-500.0,0.00023835,2]
[358620207,1745314252535,-500.0,0.00023835,2]
[358620208,1745314252545,-659.07,0.00023835,2]
[358620209,1745314252555,-654.88,0.00023835,2]
[358620210,1745314252565,-151.0,0.00023835,7]
[358620211,1745314252575,-500.0,0.00023835,2]
[358620212,1745314252585,-1442.24,0.00023835,2]
[358620213,1745314252595,-608.96,0.00023835,2]
[358620214,1745314252607,-736.68,0.00023835,2]
[358620215,1745314252621,-610.01,0.00023835,2]